Cogmind - Beta 15 @@@ ROGUE MODE // 2025.09.25 @ 19:20:33 Player: Gruff Result: Destroyed by G-34 Mercenary with Small Laser Performance ------------- Evolutions (0) 0 Regions Visited (1) 200 Robots Destroyed (16) 80 Value Destroyed (298) 298 Prototype IDs (0) 0 Alien Tech Used (0) 0 Bonus (0) 0 TOTAL SCORE: 578 Bonus ------- None Cogmind --------- Core Integrity 0/250 Matter 230/300 Energy 100/100 System Corruption 0% Temperature Cool (6) Movement Treading (160) Location -10/Materials Parts ------- > --- POWER (1) -------- (None) > --- PROPULSION (2) --- Light Treads Light Treads > --- UTILITY (2) ------ Terrain Scan Processor > --- WEAPON (2) ------- Light Assault Rifle > --- INVENTORY (5) ---- Flight Unit Improved Terrain Scanner Seismic Detector Peak State ------------ > --- POWER ------------ Light Ion Engine > --- PROPULSION ------- Flight Unit Flight Unit > --- UTILITY ---------- Improved Terrain Scanner Terrain Scan Processor > --- WEAPON ----------- Small Laser Light Assault Rifle > --- INVENTORY -------- Light Treads Light Treads Flight Unit Seismic Detector Light Armor Plating [Rating: 10] Favorites ----------- Power Ion Engine Engine Ion Engine Propulsion Aluminum Leg Treads Light Treads Leg Aluminum Leg Flight Unit Flight Unit Utility Improved Terrain Scanner Device Improved Terrain Scanner Storage Small Storage Unit Processor Terrain Scan Processor Protection Light Armor Plating Weapon Small Laser Energy Gun Small Laser Ballistic Gun Light Assault Rifle Build | -11 -10 ------- Run | Yrd Mat Slots Evolved . | . . Power . | . . Propulsion . | . . Utility . | . . Weapon . | . . Parts Attached 21 | 8 13 Power 3 | 1 2 Engine 3 | 1 2 Core . | . . Reactor . | . . Propulsion 9 | 2 7 Treads 2 | . 2 Leg 2 | 2 . Wheel . | . . Hover . | . . Flight 5 | . 5 Utility 5 | 3 2 Device 2 | 2 . Storage 1 | 1 . Processor 1 | . 1 Hackware . | . . Protection 1 | . 1 Artifact . | . . Weapon 4 | 2 2 Energy Gun 2 | 2 . Energy Cannon . | . . Ballistic Gun 2 | . 2 Ballistic Cannon . | . . Launcher . | . . Special Weapon . | . . Impact Weapon . | . . Slashing Weapon . | . . Piercing Weapon . | . . Special Melee Weapon . | . . Unidentified Prototypes . | . . Parts Lost 5 | . 5 Power 1 | . 1 Propulsion 2 | . 2 Utility 1 | . 1 Weapon 1 | . 1 Highest Loss Streak 4 | . 4 To Critical Strikes . | . . Average Backups 3 | 1 4 Power . | . . Propulsion 2 | 1 2 Utility 1 | . 1 Weapon . | . . Tool/Special . | . . Unused Backups . | . . Power . | . . Propulsion . | . . Utility . | . . Weapon . | . . Tool/Special . | . . Average Slot Usage (%) 87 | . 87 Engine 13 | . 13 Treads 1 | . 1 Leg 11 | . 11 Flight 12 | . 12 Device 17 | . 17 Processor 7 | . 7 Protection 2 | . 2 Energy Gun 16 | . 16 Ballistic Gun 3 | . 3 Peak Build Rating 10 | 9 10 Average Rating 7 | 6 8 On Entrance 4 | . 9 Naked Turns . | . . Heaviest Build 13 | 13 11 Greatest Support 20 | 20 20 Greatest Overweight (x) 2 | . 2 Average Overweight (x) . | . . Largest Inventory Capacity 8 | 8 5 Average Capacity 5 | 7 5 Most Carried 5 | 2 5 Average Carried 3 | 1 3 Final Capacity 5 | 5 5 Final Carried 3 | 2 3 Class Distribution -------------------- 57% | Mutant 42% | Scavenger-Mutant Dominant Class ---------------- Scavenger-Mutant | -10/Materials Resources | -11 -10 ----------- Run | Yrd Mat Matter Collected 391 | 280 111 Remotely . | . . Salvage Created 425 | 55 370 Parts 37 | 8 29 Haulers Intercepted . | . . Recyclers Shooed 1 | 1 . Parts Field Recycled . | . . Retrieved Matter . | . . Parts Self-Destructed . | . . Prevented . | . . Kills | -11 -10 ------- Run | Yrd Mat Combat Hostiles Destroyed 11 | . 11 Guns 11 | . 11 Classes Destroyed 5 | 1 4 Builder 1 | . 1 Tunneler 3 | 3 . Watcher 1 | . 1 Swarmer 6 | . 6 Grunt 5 | . 5 Best Kill Streak 3 | 2 3 Combat Bots Only 3 | . 3 Max Kills in Single Turn 2 | 1 2 Gunslinging . | . . Exploded . | . . Melee . | . . Uniques/NPCs Destroyed . | . . Combat | -11 -10 -------- Run | Yrd Mat Hostile Shots Fired 111 | . 111 Missed 37 | . 37 Hits 74 | . 74 Projectile 74 | . 74 Critical Strikes 1 | . 1 Damage Taken 793 | . 793 Core 255 | . 255 Absorbed by Shields . | . . Core Remaining (%) 100 | 100 . Volleys Fired 91 | 9 82 Largest 2 | 2 2 Hottest 80 | 80 80 Shots Fired 124 | 18 106 Gun 124 | 18 106 Cannon . | . . Launcher . | . . Special . | . . Kinetic 56 | . 56 Thermal 68 | 18 50 Explosive . | . . Electromagnetic . | . . Robot Hit Streak 15 | 3 15 Robot Miss Streak 8 | 3 8 Penetration Max . | . . Secondary Targets . | . . Shots Hit Robots 72 | 8 64 Core Hits 28 | 3 25 Critical Kills . | . . Critical Parts Destroyed 1 | . 1 Critical Strikes 1 | . 1 Destroy 1 | . 1 Melee Attacks . | . . Impact . | . . Slashing . | . . Piercing . | . . Sneak Attacks . | . . Combat Hostiles . | . . Follow-up Attacks . | . . Damage Inflicted 695 | 96 599 Guns 695 | 96 599 Cannons . | . . Explosions . | . . Melee . | . . Ramming . | . . Kinetic 350 | . 350 Thermal 345 | 96 249 Explosive . | . . Electromagnetic . | . . Impact . | . . Slashing . | . . Piercing . | . . Highest Corruption . | . . Average Corruption . | . . Corruption Purged . | . . Corruption Blocked . | . . Overload Shots . | . . Overflow Damage . | . . Projectiles . | . . Explosions . | . . Melee . | . . Knockbacks . | . . Impact . | . . Kinetic . | . . Secondary . | . . Self-Inflicted Damage . | . . Shots . | . . Rammed . | . . Targets Rammed . | . . Kicked . | . . Crushed . | . . Highest Temperature 419 | 54 419 Average Temperature 105 | 26 123 Received Heat Transfer 294 | . 294 Effects 5 | . 5 Energy Bleed 2 | . 2 Interference 1 | . 1 Short Circuit 2 | . 2 Siege Activations . | . . Martial Activations . | . . Shielding Activations . | . . Robots Disrupted . | . . Combat Hostiles . | . . Robots Corrupted . | . . Combat Hostiles . | . . Parts Fried . | . . Impact Corruptions . | . . Robots Melted . | . . Combat Hostiles . | . . Parts Melted . | . . Heat Transferred 775 | 225 550 Parts Sabotaged . | . . Parts Stolen . | . . Parts Stripped . | . . Power Chain Reactions . | . . Alert | -11 -10 ------- Run | Yrd Mat Maximum Alert Level . | . . Low Security (%) 100 | 100 100 Level 1 . | . . Level 2 . | . . Level 3 . | . . Level 4 . | . . Level 5 . | . . High Security . | . . Max Security . | . . Peak Influence 135 | 10 135 Initial . | . . Average 32 | 1 39 Influence Increases 377 | 15 362 Destroy 0b10 Robot/C 220 | . 220 Destroy 0b10 Robot/NC 25 | 15 10 Destroy Leader 42 | . 42 Lose Combat Pursuer 90 | . 90 Influence Decreases 242 | 15 227 Time Decay 192 | 15 177 Lost Part 50 | . 50 Squads Dispatched . | . . Investigation . | . . Extermination . | . . Reinforcement . | . . Assault . | . . Garrison . | . . Intercept . | . . Searches Triggered . | . . Construction Impeded . | . . Haulers Reinforced . | . . Active Scanning Responses . | . . Cargo Convoy Interrupts . | . . Stealth | -11 -10 --------- Run | Yrd Mat Distress Signals 1 | . 1 Communications Jammed . | . . Distress Signals . | . . Times Spotted 22 | . 22 Peak Tracking Total 9 | . 9 Tactical Retreats 3 | . 3 Traps | -11 -10 ------- Run | Yrd Mat Traps Triggered . | . . Indirectly . | . . Trap Hack Attempts . | . . Triggered . | . . Disarmed . | . . Reprogrammed . | . . Reused . | . . Traps Extracted . | . . Installed . | . . Triggered . | . . Machines | -11 -10 ---------- Run | Yrd Mat Machines Disabled . | . . Max in Single Turn . | . . Machines Repaired . | . . Machines Dismantled . | . . Machines Sabotaged . | . . Overloaded Fab Kills . | . . Hacking | -11 -10 --------- Run | Yrd Mat Machines Accessed . | . . Terminals . | . . Fabricators . | . . Repair Stations . | . . Recycling Units . | . . Scanalyzers . | . . Garrison Access . | . . Total Hacks . | . . Successful . | . . Failed . | . . Catastrophic . | . . Database Lockouts . | . . Manual . | . . Terminals . | . . Fabricators . | . . Repair Stations . | . . Recycling Units . | . . Scanalyzers . | . . Garrison Access . | . . Terminal Hacks . | . . Fabricator Hacks . | . . Repair Station Hacks . | . . Recycling Unit Hacks . | . . Scanalyzer . | . . Garrison Access Hacks . | . . Unauthorized Hacks . | . . Terminals . | . . Fabricators . | . . Repair Stations . | . . Recycling Units . | . . Scanalyzers . | . . Garrison Access . | . . Data Cores Recovered . | . . Used . | . . Hacking Detections . | . . Full Trace Events . | . . Feedback Events . | . . Feedback Blocked . | . . Robot Schematics Acquired . | . . Robots Built . | . . Authchips . | . . Time . | . . Total Robot Build Rating . | . . Part Schematics Acquired . | . . Parts Built . | . . Authchips . | . . Time . | . . Total Part Build Rating . | . . Parts Repaired . | . . Time . | . . Parts Recycled . | . . Recycled Matter . | . . Retrieved Matter . | . . Retrieved Components . | . . Parts Scanalyzed . | . . Part Schematics Acquired . | . . Parts Damaged . | . . Bothacking | -11 -10 ------------ Run | Yrd Mat Used RIF Installer . | . . Robots Hacked . | . . Non-combat . | . . Combat . | . . Robot Hacks Applied . | . . Relay Couplers Released . | . . Fabnet Peak Effective % . | . . Robots Rewired . | . . Allies Hacked . | . . Hacks Repelled . | . . Allies | -11 -10 -------- Run | Yrd Mat Total Allies . | . . Largest Group . | . . Highest-Rated Group . | . . Highest-Rated Ally . | . . Total Orders . | . . Ally Attacks . | . . Total Damage . | . . Kills . | . . Allies Corrupted . | . . Allies Melted . | . . Intel | -11 -10 ------- Run | Yrd Mat Active Infowar (turns) 494 | 38 456 Terrain 426 | 38 388 Seismic 233 | 9 224 Robot Analysis Total . | . . Derelict Logs Recovered . | . . Drone Launches . | . . Drone Recoveries . | . . Exploration | -11 -10 ------------- Run | Yrd Mat Turns Passed 614 | 111 503 Spaces Moved 255 | 56 199 Core 8 | 8 . Treads . | . . Legs 145 | 48 97 Wheels . | . . Hover . | . . Flight 102 | . 102 Fastest Speed 37 | 50 37 Average Speed 90 | 110 84 Slowest Speed 210 | 120 210 Overloaded Moves . | . . Propulsion Burnouts . | . . Robots Hopped 2 | . 2 Potential Cave-ins . | . . Cave-ins Triggered . | . . Exploration Rate (%) 19 | 4 34 Regions Visited 1 Branch Regions . Pre-discovered Areas . | . . Known Exits Taken . | . . Unknown Exits Taken 1 | 1 . Scrap Searched . | . . Spaces Dug . | . . Terrain Destroyed . | . . Melee . | . . Projectile . | . . AOE . | . . Terrain Rammed . | . . Walls Destroyed . | . . Machines Disabled . | . . Actions | -11 -10 --------- Run | Yrd Mat Total 517 | 83 434 Wait 139 | 9 130 Move 250 | 55 195 Hop 2 | . 2 Pick Up 5 | 2 3 Fast Attach 10 | 7 3 Attach 2 | . 2 Detach . | . . Swap 11 | 1 10 Drop 7 | . 7 Fire 91 | 9 82 Melee . | . . Ram . | . . Kick . | . . Crush . | . . Escape Stasis . | . . Rewire . | . . Trap . | . . Miscellaneous . | . . Route ------- -11/Scrapyard -10/Materials (discovered 1 exit: [*Min]) History --------- Turn | Location | Event 4 | -11/Scrapyard | Discovered new exit (range 16) 112 | -11/Scrapyard | Entered Materials 218 | -10/Materials | Discovered new exit (range 8) 308 | -10/Materials | Build established: Mutant 546 | -10/Materials | Core integrity fell below 50% 587 | -10/Materials | Core integrity fell below 20% 615 | -10/Materials | Destroyed by G-34 Mercenary with Small Laser Last Messages --------------- S-10 Pest destroyed. K-01 Serf collects debris. S-10 Pest destroyed. K-01 Serf collects debris. Critical hit (Burn: +37). K-01 Serf collects debris. G-47 Trooper suffers critical hit (Destroy). Destroyed Aluminum Leg. Lgt. Assault Rifle destroyed. Acquired Lgt. Assault Rifle. R-06 Scavenger collects Flight Unit. K-01 Serf collects debris. Flight Unit destroyed. G-47 Trooper destroyed. M-13 Machinist repairs K-01 Serf Med. Matter Pod. K-01 Serf collects debris. Lgt. Armor Plating destroyed. G-34 Mercenary destroyed. Lgt. Ion Engine destroyed. G-47 Trooper destroyed. Map ----- +----------------------------------------------------+ | ??????????# #????????????????? | | ??????????# #????????????????? | | ??????????# #???#????????????? | | ????????######+############## #????????????????? | | ????????# # # #??????? ????????? | | ????????# # """ """ # #????????????????? | | ????????# # """ """ + #???? ???????????? | | ????????# """" # """ """ # #?????????? | | ????????#[ """" # # +?????????? | | ????????# """" # = = # #?????????? | | ??#?????# # ######## #?????????? | | ????????# ###+#######???????? #?????????? | | ????????############# ##?#?????#????? #?????????? | | ????????????????#### #?#?#?#???#?????#?????????? | | ???????????????? # ##???##???##??????????????? | | ??????????????? ??+ #?? ?????""???????????????? | | ????????????? ? ??# #?# ? ??""? #?????????????? | | ?????????????###??## ###?? ??"?????????????????? | | ??????????##?#????# #???? ???????????????????? | | ???????????#?#?##?# ##? ???? ??#?????????????? | | ????????????#?#??## " #? ????? +? ???????????? | | ????????????####### ## ????????? ?? ?????????? | | ????? % ## ? ?""" ? ?????????? | | ??????????########## ###########?#?? ???????? | | ?????????#??# # [[#%= ##?? ??????????? | | ???????#??#?# + %mg%@ ##?? ??????????? | | ????????#?#?# # !*#= #?? ? ????? ???? | | ???????#?#??# # #* #?# ???????????? | | ???????#??#?# # ###########?# ?? ??????? | | ?????????#### # ##########??"?? """"?"????? | | ??????????######+### ##""|"!""#????? """???"???? | | ??????????###### ?## ## "|"!" ##?? """???????? | | ??????#?????#?## ### ## #### """???"???? | | ??????????#?### ! """""""???? | | ???????#?#?#### < !%* ?? | | ??????????###?# ?? | | ??????????###?### ####+## ##+######### ????? | | ??????? ????#??## #?# #########? ?????????? ???? | | ??????? ? ?#???## #?# ##?##??????????????? ? ??? | | ???????? #?#??## ### ##??#?#?#??? ???#????????? | | ???????????#?####%### ###??##????????#???? ????? | | ?############# ## #?###?#????? ???????? ??? | | ? ## ##???#????? ?????????????? | | ? ## #?#??#?????? ??????? ????? | | ? ######?#???##??? ???????? ???? | | ??#+######+### ###?#####?####????????????????? | | ?? ??????? ??## ###????##?#?#??????????????????? | | ?? ??##?? ?##[ ##?##?#?##??? #???? ???????????? | | #? ???##? ## ##???###?##??##?? ? ??? ???????? | | ???? T??# ????# ##???####??????????? ??????????? | +----------------------------------------------------+ Best States ------------- Heat Dissipation 25 Energy Generation 10 Energy Capacity 250 Matter Stores 300 Matter Capacity 300 Sight Range 16 Terrain Scan Range 16 Terrain Scan Density 85 Armor Coverage 150 Evasion (%) 62 Recoil Reduction 2 Item Schematics ----------------- None Robot Schematics ------------------ None Fabricated ------------ Nothing Repaired ---------- Nothing Alien Tech Used ----------------- None Achievements -------------- None Challenges ------------ None Game ------ Seed DerelictHeatNukerbomber Manual? 0 Play Time 00:07:38 Cumulative 45.7 hours Start 2025.09.25 @ 19:14:35 End 2025.09.25 @ 19:20:33 Sessions 1 Manual Loads 0 Difficulty Rogue Special Mode None Game No. 58 Rogue 58 Adventurer 0 Explorer 0 Win Type - Total 0 Types 0/0/0/0/0/0/0/0/0/0 Lore% 31 Gallery% 30 Achievement% 28 Wizard Run 0 Options --------- Layout 0 ASCII 0 Keyboard 0 Movement Numpad Keybinds 0 Fullscreen 1 Font 24/Smallcaps Map View 183x50 Zoom Use 3% Tactical HUD 0 Map Filters NONE Filters NONE Steam 1 RUN: 6825cb3a-54fc-4685-a34e-29fccd211b3d